bitfinex-derivatives/quotes_SOLF0:USTF0_20250516
["timestamp","ask_amount","ask_price","bid_price","bid_amount"]
[1747369687246,58.7,172.09,172.03,5.8114]
[1747369687452,58.7,172.09,172.01,5.7859]
[1747369687848,5.8104,172.07,172.02,5.8116]
[1747369688051,5.8104,172.07,172.01,5.7859]
[1747369688556,5.8098,172.08,172.03,5.8112]
[1747369688954,58.7,172.09,172.03,5.8112]
[1747369689147,58.7,172.09,172.02,5.8118]
[1747369689454,5.8104,172.07,172.02,5.8118]
[1747369691648,5.8104,172.07,172.03,5.8115]
[1747369692055,5.8105,172.06,172.03,5.8115]
[1747369692456,5.8101,172.08,172.03,5.8115]
[1747369692656,58.7,172.09,172.04,5.8111]
[1747369693456,5.8103,172.07,172.03,5.8114]
[1747369693657,58.7,172.09,172.01,3.9023]
[1747369694257,5.8105,172.06,172.02,5.8116]
[1747369694958,5.8105,172.06,172.03,5.8114]
[1747369695158,5.8102,172.07,172.03,5.8114]
[1747369696261,5.8105,172.06,172.01,7.7753]
[1747369696460,10.18875413,172.06,172.0,63.11825413]
[1747369696759,58.68,172.05,172.0,4.37825413]
[1747369697459,58.68,172.05,172.02,5.8117]
[1747369699362,58.68,172.05,171.98,4.37825413]
[1747369699556,4.37825413,172.04,171.97,62.51]
[1747369699757,4.37825413,172.04,171.97,3.83]
[1747369699963,10.19005413,172.02,171.98,5.8131]
[1747369700257,58.66,172.01,171.94,63.05825413]
[1747369700964,64.4724,172.01,171.96,5.8138]
[1747369701156,64.4724,172.01,171.94,63.05825413]
[1747369701352,64.4724,172.01,171.94,58.68]
[1747369701861,58.66,172.01,171.94,58.68]
[1747369702062,58.66,172.01,171.97,5.8135]
[1747369703263,64.4722,172.01,171.97,5.8135]
[1747369703463,64.4722,172.01,171.98,5.8132]
[1747369703764,58.66,172.01,171.94,58.68]
[1747369704164,58.66,172.01,171.92,3.8755]
[1747369704558,5.8131,171.99,171.95,5.8139]
[1747369707866,5.8132,171.98,171.95,5.8139]
[1747369708064,5.8132,171.98,171.94,5.8144]
[1747369708769,5.8129,171.99,171.95,5.8141]
[1747369709468,58.66,172.01,171.92,3.8755]
[1747369709866,58.66,172.0,171.92,3.8755]
[1747369710066,58.66,172.0,171.99,5.8128]
[1747369712669,58.66,172.01,171.99,5.8128]
[1747369712865,58.68,172.02,171.93,6.8461465]
[1747369713066,117.34,172.02,171.93,6.8461465]
[1747369713264,58.66,172.02,171.93,6.8461465]
[1747369713668,508.0905,172.06,172.02,5.8117]
[1747369713864,58.68,172.05,171.96,65.5261465]
[1747369714068,349.62176289,172.11,171.97,2.006]
[1747369714368,5.8099,172.08,172.03,5.8112]
[1747369714768,58.66,172.07,172.03,5.8112]
[1747369714971,64.4702,172.07,172.03,5.8112]
[1747369715767,5.8102,172.07,172.03,5.8112]
[1747369715973,58.66,172.06,172.02,5.8118]
[1747369717374,58.66,172.06,172.03,5.8112]
[1747369718377,64.4705,172.06,172.01,5.8118]
[1747369718577,64.4705,172.06,171.98,3.7719]
[1747369719577,64.4705,172.06,172.02,5.8117]
[1747369720675,58.66,172.06,172.02,5.8117]
[1747369722481,349.62176289,172.11,171.98,3.7719]
[1747369722676,117.28,172.1,172.0,58.64]
[1747369723381,123.0892,172.1,172.05,5.8107]
[1747369723882,58.64,172.09,172.0,58.64]
[1747369724084,58.64,172.1,172.0,117.28]
[1747369724282,58.64,172.09,172.0,117.28]
[1747369724580,117.28,172.1,172.02,6.8461465]
[1747369724886,342.77561639,172.11,172.08,5.8096]
[1747369725076,342.77561639,172.11,172.04,58.64]
[1747369725480,342.77561639,172.11,172.05,3.8593]
[1747369725680,342.77561639,172.11,172.1,5.8091]
[1747369725882,342.77561639,172.11,172.05,3.8593]
[1747369726378,58.64,172.12,172.05,3.8593]
[1747369726583,117.28,172.13,172.05,3.8593]
[1747369726980,117.28,172.13,172.09,5.8093]
[1747369728087,58.64,172.13,172.09,5.8093]
[1747369728292,58.64,172.12,172.09,5.8093]
[1747369728586,58.64,172.12,172.1,5.809]
[1747369728987,58.64,172.12,172.09,5.8094]
[1747369731490,5.8081,172.13,172.09,5.8094]
[1747369731692,64.4281,172.13,172.09,5.8094]
[1747369732490,58.62,172.13,172.09,5.8094]
[1747369733494,566.7278,172.14,172.09,5.8094]
[1747369733694,58.62,172.13,172.09,5.8094]
[1747369736395,64.4282,172.13,172.09,5.8094]
[1747369736599,58.62,172.13,172.08,5.8097]
[1747369736993,5.8087,172.12,172.05,3.8593]
[1747369737398,5.8087,172.12,172.08,5.8095]
[1747369740097,5.8087,172.12,172.09,5.8094]
[1747369741899,5.8087,172.12,172.08,5.8097]
[1747369742792,5.8087,172.12,172.09,5.8094]
[1747369742999,5.8089,172.11,172.05,3.8593]
[1747369744598,5.8089,172.11,172.07,5.8099]
[1747369745197,5.8091,172.1,172.06,5.8104]
[1747369747199,5.8089,172.11,172.07,5.8101]
[1747369747401,58.62,172.13,172.05,3.8593]
[1747369748301,64.4282,172.13,172.09,5.8093]
[1747369748601,64.4282,172.13,172.05,3.8593]
[1747369748795,58.62,172.13,172.05,3.8593]
[1747369748997,5.8085,172.12,172.08,5.8096]
[1747369749503,5.8085,172.12,172.09,5.8094]
[1747369749696,64.4281,172.13,172.09,5.8094]
[1747369751699,64.4281,172.13,172.1,5.8091]
[1747369751905,64.4281,172.13,172.05,3.8593]
[1747369752203,5.8087,172.12,172.05,3.8593]
[1747369752405,5.8087,172.12,172.08,5.8095]
[1747369752805,5.8087,172.12,172.05,3.8593]
[1747369753606,5.8087,172.12,172.09,5.8093]
[1747369757907,64.4282,172.13,172.1,5.8091]
[1747369758510,64.4282,172.13,172.09,5.8094]
[1747369759009,5.8082,172.13,172.09,5.8094]
[1747369759210,58.6,172.12,172.09,5.8094]
[1747369760016,64.4085,172.12,172.09,5.8094]
[1747369760314,64.4085,172.12,172.08,5.8097]
[1747369760515,64.4085,172.12,172.05,3.8593]
[1747369761014,64.4085,172.12,172.08,5.8096]
[1747369761617,64.4085,172.12,172.09,5.8093]
[1747369762316,58.6,172.12,172.1,5.8091]
[1747369763618,58.6,172.12,172.1,5.8091]
[1747369765717,64.4079,172.14,172.1,5.8091]
[1747369765919,58.6,172.13,172.1,5.8091]
[1747369767417,64.4079,172.14,172.1,5.8091]
[1747369767625,117.18,172.14,172.06,6.83808435]
[1747369767824,58.58,172.14,172.08,58.6]
[1747369768419,205.43269618,172.16,172.14,5.8075]
[1747369768622,205.43269618,172.16,172.08,58.6]
[1747369768623,205.43269618,172.16,172.09,6.83808435]
[1747369768813,205.43269618,172.16,172.09,67.24768435]
[1747369769016,205.43269618,172.16,172.15,5.8074]
[1747369769716,58.58,172.18,172.15,5.8074]
[1747369769921,58.58,172.18,172.14,5.8077]
[1747369770924,64.3865,172.18,172.14,5.8077]
[1747369771528,5.8065,172.18,172.14,5.8077]
[1747369771730,64.3865,172.18,172.14,5.8077]
[1747369772333,5.8059,172.2,172.09,60.4096]
[1747369772533,64.3859,172.2,172.11,6.83172265]
[1747369772730,64.3859,172.2,172.12,62.3643]
[1747369772934,5.8063,172.19,172.15,5.8072]
[1747369773738,64.3863,172.19,172.15,5.8072]
[1747369777740,64.3863,172.19,172.16,5.8071]
[1747369778542,64.3863,172.19,172.15,5.8073]
[1747369778844,5.8065,172.18,172.15,5.8073]
[1747369779940,223.42749404,172.21,172.12,62.3643]
[1747369780144,58.56,172.2,172.12,62.3643]
[1747369780739,64.3659,172.2,172.12,62.3643]
[1747369782045,58.56,172.2,172.12,62.3643]
[1747369782944,5.8062,172.19,172.15,5.8074]
[1747369784047,58.56,172.2,172.12,3.7843]
[1747369785443,58.56,172.2,172.13,5.8081]
[1747369786342,5.8072,172.16,172.13,5.8081]
[1747369786744,5.8069,172.17,172.13,5.8081]
[1747369787043,5.8069,172.17,172.14,5.8076]
[1747369788746,64.3665,172.18,172.14,5.8076]
[1747369789552,5.8073,172.16,172.12,5.8082]
[1747369789843,58.54,172.15,172.12,5.8082]
[1747369791744,62.9134725,172.15,172.07,3.796]
[1747369791934,4.3734725,172.11,172.07,3.796]
[1747369792138,223.42749404,172.21,172.07,3.796]
[1747369792338,4.3734725,172.13,172.07,3.796]
[1747369792534,58.54,172.12,172.07,3.796]
[1747369793448,58.54,172.12,172.1,5.8089]
[1747369798545,58.54,172.12,172.11,5.8088]
[1747369799051,58.54,172.12,172.1,5.809]
[1747369800555,58.56,172.17,172.07,62.356]
[1747369800754,204.36057137,172.26,172.16,6.82428708]
[1747369801060,204.36057137,172.26,172.17,64.4065]
[1747369801361,58.56,172.25,172.17,3.844]
[1747369801559,65.36861608,172.24,172.17,3.844]
[1747369801747,65.36861608,172.24,172.13,58.56]
[1747369802954,64.3444,172.24,172.2,5.8057]
[1747369804258,5.804,172.26,172.13,58.56]
[1747369804463,58.54,172.23,172.13,58.56]
[1747369804960,58.54,172.23,172.2,5.8056]
[1747369807666,58.54,172.23,172.21,5.8054]
[1747369807858,58.54,172.23,172.17,58.54]
[1747369808054,58.52,172.24,172.17,58.54]
[1747369808254,58.52,172.24,172.18,3.9161]
[1747369808459,58.52,172.25,172.18,3.9161]
[1747369810668,58.52,172.25,172.21,5.8051]
[1747369811569,58.52,172.25,172.22,5.805]
[1747369814270,58.52,172.24,172.22,5.805]
[1747369814671,58.52,172.24,172.18,3.9161]
[1747369816266,58.52,172.24,172.2,5.8056]
[1747369817169,58.52,172.24,172.18,9.7222]
[1747369817369,58.52,172.24,172.18,3.9161]
[1747369818172,58.52,172.24,172.2,5.8057]
[1747369818373,58.52,172.24,172.17,58.54]
[1747369819075,5.8048,172.23,172.19,5.8058]
[1747369819373,58.52,172.24,172.15,1.8503]
[1747369819677,5.8059,172.2,172.16,5.807]
[1747369819866,58.5,172.19,172.16,5.807]
[1747369821471,58.5,172.19,172.17,5.8067]
[1747369821676,58.5,172.19,172.12,3.7085]
[1747369824474,58.5,172.19,172.15,5.8072]
[1747369824674,58.5,172.19,172.12,3.7085]
[1747369827680,58.5,172.19,172.16,5.8071]
[1747369827886,64.3061,172.19,172.12,3.7085]
[1747369828379,58.5,172.19,172.12,3.7085]
[1747369829780,58.5,172.19,172.17,5.8065]
[1747369830181,58.5,172.19,172.12,3.7085]
[1747369831484,58.5,172.19,172.18,5.8064]
[1747369833682,58.5,172.19,172.17,5.8067]
[1747369833886,58.5,172.19,172.12,3.7085]
[1747369834284,58.5,172.19,172.16,5.8069]
[1747369834982,64.3061,172.19,172.15,5.8073]
[1747369835283,58.5,172.19,172.12,3.7085]
[1747369835690,64.3064,172.19,172.14,5.8074]
[1747369836094,64.3064,172.19,172.14,5.8075]
[1747369836292,58.5,172.19,172.11,167.78984628]
[1747369836491,58.5,172.19,172.11,109.28984628]
[1747369836896,5.8074,172.16,172.12,5.8083]
[1747369837095,58.5,172.15,172.12,5.8083]
[1747369838793,64.3074,172.15,172.11,115.09854628]
[1747369840897,58.5,172.15,172.12,5.8084]
[1747369843099,64.3075,172.15,172.11,115.09854628]
[1747369843898,5.8078,172.14,172.11,109.28984628]
[1747369844199,58.5,172.15,172.1,5.809]
[1747369844393,5.8081,172.13,172.08,5.8098]
[1747369844903,5.8081,172.13,172.06,3.7737]
[1747369845094,5.8081,172.13,172.08,5.8098]
[1747369846699,5.8085,172.12,172.08,5.8098]
[1747369848303,58.52,172.11,172.08,5.8098]
[1747369850502,64.3289,172.11,172.07,5.8101]
[1747369851009,5.8094,172.1,172.06,5.8104]
[1747369851505,58.52,172.11,172.01,62.2589]
[1747369851506,58.52,172.11,172.02,58.52]
[1747369851807,58.52,172.11,172.04,5.811]
[1747369852201,5.8108,172.06,172.01,5.8119]
[1747369852406,64.3308,172.06,172.01,5.8119]
[1747369852607,58.52,172.06,172.01,5.8119]
[1747369852809,5.8108,172.05,172.01,5.8119]
[1747369855011,58.52,172.06,172.02,5.8115]
[1747369856512,64.3305,172.06,172.02,5.8115]
[1747369856915,58.52,172.06,171.96,174.5336053]
[1747369857208,58.52,172.06,171.98,6.82861608]
[1747369857413,58.52,172.06,172.04,5.8109]
[1747369857604,58.52,172.06,171.99,58.52]
[1747369859011,58.52,172.08,172.05,5.8106]
[1747369859313,58.54,172.07,172.01,6.82861608]
[1747369859613,58.54,172.09,172.06,5.8102]
[1747369859814,58.54,172.09,172.02,3.7585]
[1747369860915,58.54,172.09,172.06,5.8102]
[1747369861109,58.54,172.09,172.02,3.7585]
[1747369861315,58.54,172.1,172.03,58.54]
[1747369861518,122.869,172.11,172.03,58.54]
[1747369862110,122.869,172.11,172.06,5.8102]
[1747369862614,117.06,172.11,172.04,5.8111]
[1747369863209,117.06,172.11,172.02,9.5702]
[1747369864315,117.06,172.11,172.02,3.7585]
[1747369864515,117.06,172.11,172.01,5.8121]
[1747369864813,117.06,172.11,172.0,1.8278]
[1747369864814,117.06,172.11,171.99,58.54]
[1747369866013,5.8114,172.04,172.0,5.8124]
[1747369866214,64.3514,172.04,172.0,5.8124]
[1747369867116,64.3514,172.04,172.01,5.8121]
[1747369867310,64.3514,172.04,171.99,58.54]
[1747369868520,58.54,172.04,172.01,5.8121]
[1747369868717,58.54,172.04,171.99,58.54]
[1747369869318,64.3512,172.04,172.0,5.8122]
[1747369869520,58.54,172.04,171.99,58.54]
[1747369870820,58.54,172.04,172.01,5.8121]
[1747369876418,58.54,172.04,172.02,5.8118]
[1747369878121,58.54,172.04,172.03,5.8115]
[1747369878426,58.54,172.04,172.02,5.8117]
[1747369879123,58.54,172.04,172.01,5.812]
[1747369879620,58.54,172.04,172.0,5.8124]
[1747369880025,58.54,172.04,172.0,5.75646723]
[1747369880425,94.07034833,258.62,172.01,123.90861608]
[1747369880625,94.07034833,258.62,172.04,6.82861608]
[1747369880626,6.82861608,172.18,172.04,6.82861608]
[1747369880825,117.08,172.17,172.04,6.82861608]
[1747369881026,5.8079,172.14,172.04,6.82861608]
[1747369881226,58.54,172.13,172.04,6.82861608]
[1747369881426,58.54,172.17,172.04,6.82861608]
[1747369881621,58.54,172.16,172.05,1.9624]
[1747369881925,58.54,172.16,172.07,6.82861608]
[1747369882123,64.3472,172.16,172.11,5.8086]
[1747369882726,58.54,172.16,172.12,5.8084]
[1747369883530,64.3474,172.16,172.12,5.8084]
[1747369884127,5.8074,172.15,172.12,5.8084]
[1747369884525,58.54,172.16,172.12,5.8084]
[1747369884926,64.3474,172.16,172.12,5.8084]
[1747369885127,58.54,172.16,172.11,5.8087]
[1747369885524,58.54,172.16,172.07,6.82861608]
[1747369887428,5.8071,172.16,172.12,5.8082]
[1747369887629,64.3271,172.16,172.12,5.8082]
[1747369888030,5.8074,172.15,172.07,6.82861608]
[1747369888326,58.52,172.16,172.06,1.9418]
[1747369889332,5.8087,172.12,172.06,1.9418]
[1747369889530,58.52,172.12,172.06,1.9418]
[1747369891130,58.52,172.14,172.06,1.9418]
[1747369891932,64.3278,172.14,172.06,1.9418]
[1747369893232,64.3278,172.14,172.1,5.8088]
[1747369893433,58.52,172.14,172.07,6.82861608]
[1747369893834,58.52,172.14,172.08,58.52]
[1747369894537,5.8072,172.16,172.08,58.52]
[1747369894836,58.52,172.15,172.08,58.52]
[1747369895734,58.52,172.15,172.11,5.8086]
[1747369896532,64.3276,172.15,172.11,5.8086]
[1747369896734,58.52,172.15,172.09,5.8092]
[1747369897539,5.8085,172.12,172.08,5.8097]
[1747369898438,5.8088,172.11,172.06,5.8102]
[1747369898840,64.3088,172.11,172.06,5.8102]
[1747369899038,64.3088,172.11,172.07,5.81]
[1747369899741,58.5,172.11,172.05,60.4824]
[1747369901544,58.5,172.11,172.1,5.8091]
[1747369902344,58.5,172.11,172.09,5.8094]
[1747369902544,58.5,172.11,172.05,60.4824]
[1747369902942,58.5,172.11,172.07,5.8099]
[1747369904042,5.8091,172.1,172.06,5.8104]
[1747369905342,58.5,172.09,172.02,1.9304]
[1747369905747,58.5,172.09,172.01,1.838]
[1747369905941,5.8104,172.07,172.03,5.8114]
[1747369906145,64.5104,172.07,172.03,5.8114]
[1747369908653,58.7,172.07,172.04,5.8111]
[1747369908853,58.7,172.07,172.01,1.838]
[1747369909353,58.7,172.07,172.05,5.8106]
[1747369909654,58.7,172.07,172.02,6.82861608]
[1747369910454,58.7,172.07,172.01,1.838]
[1747369910649,58.66,172.1,172.06,5.8105]
[1747369910849,5.8089,172.11,172.03,58.5]
[1747369911150,58.66,172.1,172.03,58.5]
[1747369911751,58.5,172.12,172.03,58.5]
[1747369911952,58.64,172.1,172.04,5.8111]
[1747369912257,5.81,172.08,172.03,58.5]
[1747369912555,5.81,172.08,172.03,64.3114]
[1747369913056,5.81,172.08,172.03,58.5]
[1747369913359,5.8102,172.07,172.03,5.8114]
[1747369915661,5.8102,172.07,172.04,5.8111]
[1747369916058,5.8102,172.07,172.01,1.838]
[1747369916463,58.68,172.06,172.03,5.8114]
[1747369917460,58.68,172.06,172.04,5.8111]
[1747369918760,58.68,172.06,172.03,5.8114]
[1747369918957,5.8102,172.07,172.03,5.8114]
[1747369919661,64.4299,172.08,172.04,5.8111]
[1747369920171,5.8102,172.07,172.03,5.8114]
[1747369921159,5.8105,172.06,172.03,5.8114]
[1747369923169,58.62,172.08,172.0,67.15501608]
[1747369923467,58.52,172.09,172.0,67.15501608]
[1747369923667,58.52,172.09,172.06,5.8102]
[1747369923859,58.52,172.09,172.03,6.82861608]
[1747369924062,185.84048428,172.13,172.06,6.82861608]
[1747369924063,58.52,172.12,172.06,6.82861608]
[1747369924264,58.52,172.12,172.1,5.8091]
[1747369924463,185.84048428,172.13,172.09,6.82861608]
[1747369924865,185.84048428,172.13,172.12,5.8084]
[1747369928068,58.52,172.16,172.14,5.8077]
[1747369929970,117.02,172.19,172.15,5.8074]
[1747369930172,64.3063,172.19,172.09,6.82861608]
[1747369930470,122.8263,172.19,172.09,6.82861608]
[1747369930672,58.5,172.19,172.12,6.82861608]
[1747369930868,64.3255,172.21,172.12,65.32861608]
[1747369931075,64.3255,172.21,172.16,5.8068]
[1747369931477,5.8058,172.2,172.16,5.8068]
[1747369934076,560.68,172.22,172.17,5.8067]
[1747369934275,560.68,172.22,172.12,70.99191608]
[1747369934276,58.5,172.22,172.12,70.99191608]
[1747369934577,64.3051,172.22,172.12,70.99191608]
[1747369934778,58.5,172.22,172.18,5.8064]
[1747369935275,64.3052,172.22,172.18,5.8064]
[1747369936076,5.8055,172.21,172.17,5.8067]
[1747369936380,58.5,172.22,172.13,58.5]
[1747369937583,58.5,172.22,172.12,3.8021]
[1747369938082,5.8071,172.17,172.12,9.6103]
[1747369938278,58.5,172.17,172.12,3.8021]
[1747369938979,58.5,172.17,172.15,5.8071]
[1747369942786,58.5,172.17,172.13,5.8078]
[1747369943084,58.5,172.17,172.12,3.8021]
[1747369943782,58.5,172.17,172.09,6.82861608]
[1747369945188,5.8075,172.15,172.1,5.809]
[1747369945484,58.5,172.17,172.09,6.82861608]
[1747369947385,5.8071,172.16,172.12,5.8082]
[1747369948189,64.2867,172.18,172.09,6.82861608]
[1747369948487,58.5,172.17,172.09,6.82861608]
[1747369948785,64.3068,172.17,172.09,6.82861608]
[1747369949385,64.3068,172.17,172.13,5.8079]
[1747369949584,58.5,172.17,172.09,6.82861608]
[1747369949785,58.5,172.17,172.1,3.8317]
[1747369950084,116.98,172.18,172.1,3.8317]
[1747369950284,116.98,172.18,172.1,5.8208]
[1747369950787,116.98,172.18,172.15,5.8071]
[1747369951284,116.98,172.18,172.16,5.8071]
[1747369951986,58.48,172.18,172.16,5.8071]
[1747369952486,58.48,172.18,172.15,5.8073]
[1747369954388,64.2865,172.18,172.14,5.8077]
[1747369955488,64.2865,172.18,172.15,5.8074]
[1747369956688,58.48,172.18,172.16,5.8071]
[1747369956988,58.48,172.18,172.11,58.48]
[1747369957178,64.2865,172.18,172.11,58.48]
[1747369957382,64.2865,172.18,172.14,5.8074]
[1747369957578,64.2865,172.18,172.11,58.48]
[1747369957790,58.48,172.18,172.11,58.48]
[1747369958686,58.48,172.18,172.14,5.8075]
[1747369961291,64.2865,172.18,172.14,5.8075]
[1747369961493,58.48,172.18,172.11,58.48]
[1747369961990,58.48,172.18,172.1,3.8317]
[1747369962495,5.8077,172.15,172.11,5.8087]
[1747369962682,64.2877,172.15,172.11,5.8087]
[1747369964802,58.48,172.15,172.1,3.8317]
[1747369965890,58.48,172.15,172.12,5.8082]
[1747369966193,58.48,172.15,172.1,3.8317]
[1747369966893,116.96,172.18,172.1,5.806]
[1747369967087,116.96,172.18,172.1,64.286]
[1747369967691,116.96,172.18,172.12,5.8083]
[1747369967894,116.96,172.18,172.1,64.286]
[1747369968293,58.48,172.18,172.15,5.8072]
[1747369969398,58.48,172.18,172.16,5.8071]
[1747369975807,64.2858,172.2,172.16,5.8071]
[1747369978213,5.8061,172.19,172.16,5.8071]
[1747369980212,64.2859,172.2,172.16,5.8071]
[1747369980507,116.94,172.21,172.13,58.48]
[1747369981213,58.48,172.21,172.13,58.48]
[1747369981910,64.2854,172.21,172.13,58.48]
[1747369982417,58.48,172.21,172.13,58.48]
[1747369982617,5.806,172.2,172.13,58.48]
[1747369982916,5.806,172.2,172.16,5.8069]
[1747369984415,5.806,172.2,172.17,5.8067]
[1747369985221,64.2855,172.21,172.17,5.8067]
[1747369985720,64.2855,172.21,172.18,5.8064]
[1747369986622,64.2855,172.21,172.17,5.8066]
[1747369986816,5.8059,172.2,172.17,5.8066]
[1747369987924,5.8059,172.2,172.16,5.807]
[1747369988125,5.8061,172.19,172.16,5.807]
[1747369988425,58.48,172.21,172.16,5.807]
[1747369988625,5.806,172.2,172.16,5.807]
[1747369990421,5.8062,172.19,172.16,5.807]
[1747369992229,58.48,172.21,172.13,58.48]
[1747369992624,58.48,172.21,172.14,5.8076]
[1747369992825,5.8067,172.18,172.14,5.8076]
[1747369995732,58.44,172.18,172.1,64.246]
[1747369996433,5.807,172.17,172.13,5.8079]
[1747369997335,5.807,172.17,172.14,5.8077]
[1747369997633,5.807,172.17,172.1,64.246]
[1747369997934,5.807,172.17,172.13,5.8081]
[1747369999535,5.8072,172.16,172.12,5.8083]
[1747369999739,5.8072,172.16,172.1,64.246]
[1747370000834,5.8072,172.16,172.13,5.808]
[1747370001631,5.8072,172.16,172.1,64.246]
[1747370001833,5.8069,172.17,172.1,64.246]
[1747370002234,5.8069,172.17,172.13,5.808]
[1747370002435,58.44,172.18,172.1,62.2717]
[1747370002638,58.44,172.17,172.1,3.8317]
[1747370002837,58.44,172.17,172.11,5.8087]
[1747370003237,5.8077,172.15,172.11,5.8087]
[1747370003434,58.44,172.14,172.1,9.6407]
[1747370003840,64.2478,172.14,172.1,9.6407]
[1747370005537,64.2478,172.14,172.11,5.8088]
[1747370005834,58.44,172.14,172.1,3.8317]
[1747370006035,58.44,172.17,172.16,5.8071]
[1747370006244,58.44,172.2,172.12,6.82861608]
[1747370007238,58.44,172.2,172.17,5.8066]
[1747370008744,58.44,172.2,172.18,5.8064]
[1747370009442,58.44,172.21,172.12,65.26861608]
[1747370009743,116.88,172.21,172.12,65.26861608]
[1747370010240,122.6857,172.21,172.12,65.26861608]
[1747370012543,122.6857,172.21,172.17,5.8066]
[1747370013246,116.88,172.21,172.18,5.8064]
[1747370013744,244.18061081,172.24,172.18,5.8064]
[1747370013935,58.42,172.22,172.18,5.8064]
[1747370014545,64.2251,172.22,172.18,5.8064]
[1747370014944,58.42,172.22,172.17,5.8066]
[1747370015344,58.42,172.22,172.12,65.26861608]
[1747370015546,58.42,172.22,172.16,5.8068]
[1747370016350,58.42,172.22,172.17,5.8067]
[1747370016545,58.42,172.22,172.12,65.26861608]
[1747370016847,64.2252,172.22,172.12,65.26861608]
[1747370017547,5.8055,172.21,172.17,5.8065]
[1747370020354,64.2252,172.22,172.18,5.8063]
[1747370020552,64.2052,172.22,172.18,5.8063]
[1747370026356,5.8054,172.21,172.18,5.8063]
[1747370026557,5.8054,172.21,172.17,5.8066]
[1747370026857,58.4,172.22,172.14,58.44]
[1747370027254,4.37261832,172.2,172.11,60.3595]
[1747370027554,58.4,172.19,172.13,4.37261832]
[1747370027755,58.4,172.18,172.13,10.18061832]
[1747370028459,5.807,172.17,172.13,10.18061832]
[1747370029358,5.807,172.17,172.13,5.808]
[1747370029761,5.8071,172.16,172.13,5.808]
[1747370031256,5.8071,172.16,172.12,5.8083]
[1747370033961,5.8075,172.15,172.12,5.8083]
[1747370034661,5.8072,172.16,172.12,5.8083]
[1747370038252,5.8075,172.15,172.12,5.8083]
[1747370039064,5.8072,172.16,172.12,5.8083]
[1747370039461,58.4,172.19,172.11,1.9595]
[1747370039656,58.38,172.19,172.12,58.4]
[1747370040665,58.4,172.2,172.12,58.4]
[1747370041165,5.8052,172.22,172.14,6.83336934]
[1747370041366,58.38,172.21,172.14,6.83336934]
[1747370042567,58.38,172.21,172.18,5.8062]
[1747370045669,64.1854,172.21,172.17,5.8067]
[1747370045970,58.38,172.21,172.14,6.83336934]
[1747370046472,58.38,172.21,172.12,58.4]
[1747370047072,5.8063,172.19,172.15,5.8072]
[1747370048171,5.8064,172.18,172.15,5.8072]
[1747370048471,5.8064,172.18,172.14,5.8077]
[1747370049065,58.4,172.19,172.11,1.9595]
[1747370049678,5.8073,172.16,172.12,5.8084]
[1747370050777,58.36,172.17,172.12,5.8084]
[1747370050778,5.8075,172.15,172.12,5.8084]
[1747370050960,5.8075,172.15,172.11,5.8087]
[1747370051373,5.8078,172.14,172.11,5.8087]